bitfinex/quotes_SOLUSD_20241101
["timestamp","ask_amount","ask_price","bid_price","bid_amount"]
[1730496011633,8.97896785,165.42,165.38,4.67126555]
[1730496011938,8.97896785,165.42,165.39,1.51359439]
[1730496012118,8.97896785,165.42,165.38,3.15767142]
[1730496012315,8.97896785,165.42,165.39,7.5598945]
[1730496012616,8.97896785,165.42,165.39,6.0463]
[1730496013538,8.97896785,165.42,165.38,3.15745192]
[1730496013843,8.97896785,165.42,165.39,1.51359473]
[1730496014136,8.97896785,165.42,165.38,3.15745166]
[1730496014443,8.97896785,165.42,165.39,1.51359484]
[1730496014626,8.97896785,165.42,165.39,6.0463]
[1730496015836,8.97896785,165.42,165.37,15.1176]
[1730496016017,8.97896785,165.42,165.38,4.67061861]
[1730496016219,8.97896785,165.42,165.39,1.51359523]
[1730496016424,8.97896785,165.42,165.38,3.15681551]
[1730496016626,8.97896785,165.42,165.39,1.51359444]
[1730496016819,8.97896785,165.42,165.38,3.15681551]
[1730496017031,8.97896785,165.42,165.39,7.55979478]
[1730496017231,8.97896785,165.42,165.39,6.0462]
[1730496018219,8.97896785,165.42,165.37,21.1646]
[1730496018418,8.97896785,165.42,165.38,1.51358765]
[1730496018733,8.97896785,165.42,165.39,1.51358765]
[1730496019042,8.97896785,165.42,165.37,30.14356785]
[1730496019443,8.97896785,165.42,165.39,6.0463]
[1730496019944,8.97896785,165.43,165.39,21.162]
[1730496020237,8.97896785,165.44,165.39,21.162]
[1730496020644,8.97896785,165.44,165.4,1.5134729]
[1730496020816,8.97896785,165.44,165.39,21.162]
[1730496021018,8.97896785,165.44,165.4,7.55917533]
[1730496021321,8.97896785,165.44,165.4,6.0457]
[1730496021829,8.97896785,165.43,165.4,6.0457]
[1730496022026,8.97896785,165.42,165.4,6.0457]
[1730496023916,8.97896785,165.43,165.4,21.1605]
[1730496025519,8.97896785,165.44,165.4,15.1148]
[1730496029323,8.97896785,165.44,165.41,1.51337416]
[1730496029528,8.97896785,165.44,165.41,6.0454]
[1730496030548,8.97896785,165.43,165.4,15.1148]
[1730496030744,8.97896785,165.43,165.41,1.51336704]
[1730496030932,8.97896785,165.43,165.4,15.1148]
[1730496031135,8.97896785,165.43,165.41,1.51337473]
[1730496031319,8.97896785,165.43,165.4,15.1148]
[1730496031519,8.97896785,165.43,165.41,1.51337473]
[1730496031743,8.97896785,165.43,165.4,15.1148]
[1730496031923,8.97896785,165.43,165.41,7.55877353]
[1730496032129,8.97896785,165.42,165.4,15.1148]
[1730496035228,8.97896785,165.41,165.37,15.1171]
[1730496035457,8.97896785,165.4,165.37,15.1171]
[1730496036330,8.97896785,165.4,165.38,1.51369117]
[1730496036525,8.97896785,165.4,165.37,15.1171]
[1730496036736,8.97896785,165.4,165.38,1.51368359]
[1730496036936,8.97896785,165.4,165.37,15.1171]
[1730496037228,8.97896785,165.4,165.38,1.51368325]
[1730496037537,8.97896785,165.4,165.37,15.1171]
[1730496037725,8.97896785,165.4,165.38,7.56009106]
[1730496037928,8.97896785,165.4,165.38,6.0464]
[1730496038827,8.97896785,165.41,165.38,6.0464]
[1730496039149,8.97896785,165.39,165.34,21.1679]
[1730496039320,8.97896785,165.37,165.35,4.67158171]
[1730496039521,8.97896785,165.37,165.36,1.51369027]
[1730496039735,8.97896785,165.38,165.36,1.51369027]
[1730496039955,8.97896785,165.38,165.34,15.1198]
[1730496040130,8.97896785,165.38,165.35,10.71973127]
[1730496040332,8.97896785,165.38,165.36,1.51385413]
[1730496040632,8.97896785,165.38,165.35,6.0476]
[1730496040955,8.97896785,165.38,165.36,1.51386216]
[1730496041125,8.97896785,165.38,165.34,15.1198]
[1730496041331,8.97896785,165.36,165.35,4.67175234]
[1730496041651,8.97896785,165.36,165.34,15.1198]
[1730496041951,8.97896785,165.36,165.31,6.0489]
[1730496042139,8.97896785,165.34,165.31,6.0489]
[1730496043042,8.97896785,165.34,165.32,1.51420211]
[1730496043351,8.97896785,165.34,165.3,15.1232]
[1730496043556,8.97896785,165.34,165.31,1.51420021]
[1730496043852,8.97896785,165.34,165.3,15.1232]
[1730496044047,8.97896785,165.34,165.31,1.51420055]
[1730496044246,8.97896785,165.34,165.31,6.049]
[1730496045949,8.97896785,165.32,165.29,6.0499]
[1730496046646,8.97896785,165.32,165.29,7.56422368]
[1730496046825,8.97896785,165.32,165.29,6.0499]
[1730496047232,8.97896785,165.31,165.29,7.56416022]
[1730496050355,8.97896785,165.31,165.29,6.0499]
[1730496050858,8.97896785,165.32,165.29,6.0499]
[1730496052454,8.97896785,165.31,165.28,6.31968265]
[1730496052753,8.97896785,165.31,165.27,21.1765]
[1730496053758,8.97896785,165.31,165.27,15.1262]
[1730496053951,8.97896785,165.33,165.27,24.10516785]
[1730496055148,8.97896785,165.33,165.27,30.15586785]
[1730496057061,8.97896785,165.33,165.28,8.97896785]
[1730496057242,15.02706785,165.34,165.28,8.97896785]
[1730496057439,15.02706785,165.34,165.28,10.49321123]
[1730496057646,8.97896785,165.34,165.29,8.97896785]
[1730496057857,24.06146785,165.35,165.29,8.97896785]
[1730496058555,30.10916785,165.35,165.29,8.97896785]
[1730496059153,8.97896785,165.34,165.3,6.0496]
[1730496060754,8.97896785,165.34,165.3,21.1736]
[1730496062058,8.97896785,165.34,165.28,8.97896785]
[1730496064167,8.97896785,165.33,165.28,8.97896785]
[1730496064349,8.97896785,165.33,165.29,21.1748]
[1730496070178,8.97896785,165.33,165.29,15.1249]
[1730496072864,8.97896785,165.33,165.29,21.1748]
[1730496074977,8.97896785,165.33,165.29,15.1249]
[1730496075160,8.97896785,165.33,165.29,16.63911404]
[1730496075971,8.97896785,165.32,165.29,15.1249]
[1730496076182,8.97896785,165.32,165.29,16.63912186]
[1730496076367,8.97896785,165.32,165.29,15.1249]
[1730496077563,8.97896785,165.32,165.29,16.63917418]
[1730496078184,8.97896785,165.32,165.29,15.1249]
[1730496079256,8.97896785,165.32,165.3,1.51428166]
[1730496080278,8.97896785,165.32,165.29,21.1746]
[1730496080477,8.97896785,165.32,165.3,1.51428132]
[1730496080667,8.97896785,165.32,165.29,21.1746]
[1730496080870,8.97896785,165.32,165.3,1.51428168]
[1730496081059,8.97896785,165.32,165.29,21.1746]
[1730496081260,8.97896785,165.32,165.3,1.51428168]
[1730496081472,8.97896785,165.32,165.29,21.1746]
[1730496081783,8.97896785,165.32,165.3,1.51428134]
[1730496081959,8.97896785,165.32,165.29,21.1746]
[1730496082162,8.97896785,165.32,165.3,1.51428168]
[1730496082361,8.97896785,165.32,165.29,21.1746]
[1730496082563,8.97896785,165.32,165.3,1.51428134]
[1730496082786,8.97896785,165.32,165.29,21.1746]
[1730496083081,8.97896785,165.32,165.3,4.6721805]
[1730496083283,6.0488,165.33,165.31,1.51428134]
[1730496083485,6.0488,165.33,165.3,3.15789672]
[1730496083670,6.0488,165.33,165.31,1.514281]
[1730496083869,6.0488,165.33,165.3,3.15789672]
[1730496084060,8.97896785,165.34,165.31,1.514281]
[1730496084266,15.02716785,165.34,165.29,21.1747]
[1730496084565,15.02716785,165.34,165.3,4.6737541]
[1730496084765,15.02716785,165.34,165.31,1.51428031]
[1730496084966,15.02716785,165.34,165.29,21.1747]
[1730496085275,8.97896785,165.33,165.3,4.6737541]
[1730496085473,8.97896785,165.33,165.31,4.6737541]
[1730496085679,8.97896785,165.33,165.32,1.51428031]
[1730496085875,8.97896785,165.33,165.32,1.51427886]
[1730496086271,8.97896785,165.34,165.32,1.51427886]
[1730496086471,8.97896785,165.34,165.33,1.51427886]
[1730496087384,8.97896785,165.34,165.33,4.67924674]
[1730496087588,8.97896785,165.34,165.33,1.51427886]
[1730496088301,8.97896785,165.34,165.3,6.0494]
[1730496088589,21.1305,165.35,165.3,6.0494]
[1730496088590,8.97896785,165.33,165.3,6.0494]
[1730496088891,8.97896785,165.33,165.31,7.84419078]
[1730496089074,8.97896785,165.33,165.32,4.6792064]
[1730496092184,8.97896785,165.33,165.32,4.67920572]
[1730496098090,15.02746785,165.33,165.32,4.67920572]
[1730496099005,15.02746785,165.33,165.32,4.6801744]
[1730496099772,15.02746785,165.33,165.32,1.51422052]
[1730496099993,15.02746785,165.33,165.28,6.0502]
[1730496100177,90.0,165.33,165.29,1.51434512]
[1730496100386,90.0,165.33,165.3,1.51434512]
[1730496100684,90.0,165.33,165.31,1.51434512]
[1730496100883,90.0,165.33,165.26,21.1782]
[1730496101085,8.97896785,165.28,165.27,4.68027904]
[1730496101287,8.97896785,165.29,165.27,4.68027904]
[1730496101475,8.97896785,165.29,165.28,4.68027904]
[1730496107213,8.97896785,165.29,165.28,3.16584952]
[1730496107383,8.97896785,165.29,165.28,4.6773772]
[1730496108805,8.97896785,165.29,165.28,4.67736975]
[1730496111093,8.97896785,165.29,165.28,3.16293706]
[1730496111290,8.97896785,165.29,165.28,4.67670122]
[1730496111602,8.97896785,165.3,165.28,4.67657433]
[1730496111800,8.97896785,165.3,165.29,1.51444014]
[1730496111997,8.97896785,165.3,165.29,4.67657433]
[1730496113319,8.97896785,165.3,165.26,15.1272]
[1730496113507,8.97896785,165.3,165.29,3.16200183]
[1730496114213,8.97896785,165.3,165.29,6.32385258]
[1730496114891,8.97896785,165.3,165.29,4.67643381]
[1730496115607,8.97896785,165.3,165.29,3.16200183]
[1730496117189,8.97896785,165.3,165.29,6.32382751]
[1730496117603,8.97896785,165.3,165.29,3.16200183]
[1730496117800,15.02856785,165.3,165.29,4.6762667]
[1730496118793,15.02856785,165.3,165.29,1.51445351]
[1730496119111,15.02856785,165.3,165.29,4.67631201]
[1730496121707,30.32126785,165.3,165.25,21.1799]
[1730496121915,21.3423,165.3,165.29,4.67609952]
[1730496122109,21.3423,165.3,165.29,3.16165505]
[1730496122289,21.3423,165.3,165.26,3.16165505]
[1730496122488,21.3423,165.3,165.27,4.67626008]
[1730496122714,21.3423,165.3,165.28,1.51460503]
[1730496122909,21.3423,165.3,165.25,21.1799]
[1730496123118,21.3423,165.3,165.26,4.67618318]
[1730496123312,21.3423,165.3,165.27,4.67618318]
[1730496123508,21.3423,165.3,165.28,1.51461575]
[1730496123689,21.3423,165.3,165.26,3.16103373]
[1730496123895,21.3423,165.3,165.27,4.67554406]
[1730496124107,21.3423,165.3,165.28,1.51458595]
[1730496124312,21.3423,165.3,165.26,3.16057532]
[1730496124613,21.3423,165.3,165.27,4.67516127]
[1730496124796,21.3423,165.3,165.25,21.1799]
[1730496124989,21.3423,165.3,165.26,1.51478341]
[1730496125201,21.3423,165.3,165.25,21.1799]
[1730496125400,8.97896785,165.28,165.26,1.51478341]
[1730496125600,8.97896785,165.28,165.25,21.1799]
[1730496125801,8.97896785,165.28,165.26,6.051]
[1730496125996,8.97896785,165.28,165.26,7.56579172]
[1730496126220,8.97896785,165.28,165.26,6.051]
[1730496126433,21.7342,165.26,165.24,0.3312321]
[1730496126722,20.0,165.22,165.19,1.51511627]
[1730496126903,20.0,165.2,165.17,3.16060167]
[1730496127224,20.0,165.2,165.18,1.51542425]
[1730496127409,20.0,165.2,165.16,0.05888621]
[1730496127914,6.0536,165.19,165.16,0.05888621]
[1730496128110,15.2927,165.21,165.16,0.05888621]
[1730496128415,91.3457,165.21,165.16,0.05888621]
[1730496131201,21.3457,165.21,165.16,0.05888621]
[1730496132318,91.3457,165.21,165.16,0.05888621]
[1730496134200,21.3457,165.21,165.16,0.05888621]
[1730496135206,70.0,165.2,165.16,0.05888621]
[1730496136115,20.0,165.19,165.16,0.05888621]
[1730496136313,70.0,165.18,165.16,0.05888621]
[1730496137204,6.054,165.18,165.16,0.05888621]
[1730496138316,85.9737,165.11,165.08,0.6047773]
[1730496138510,70.0,165.1,165.08,0.6047773]
[1730496139514,70.0,165.1,165.02,21.2094]
[1730496139515,20.0,165.05,164.9,16.6525]
[1730496139709,70.0,165.04,164.96,6.3078319]
[1730496139928,20.0,165.05,164.93,27.5977]
[1730496140309,26.0589,165.05,164.93,33.90631768]
[1730496140509,70.0,165.04,164.93,33.90631768]
[1730496141507,6.0595,165.03,164.93,33.90631768]
[1730496142210,70.0,165.01,164.93,33.90631768]
[1730496142411,76.0603,165.01,164.93,33.90631768]
[1730496143410,76.0603,165.01,164.93,15.1573]
[1730496143610,70.0,164.99,164.93,15.1573]
[1730496143925,20.0,165.0,164.93,15.1573]
[1730496144428,70.0,164.99,164.93,15.1573]
[1730496144628,76.0611,164.99,164.93,15.1573]
[1730496144802,76.0611,164.99,164.92,6.0635]
[1730496145003,76.0611,164.99,164.91,0.6047773]
[1730496146307,6.2605,165.03,164.91,0.6047773]
[1730496146308,20.0,165.03,164.92,23.902374]
[1730496146526,20.0,165.02,164.91,21.8281773]
[1730496146828,20.0,165.02,164.92,23.776884]
[1730496147030,26.0599,165.02,164.93,0.12549]
[1730496147234,6.0599,165.02,164.93,0.12549]
[1730496147432,26.0591,165.04,164.93,0.12549]
[1730496150531,35.44598909,165.04,164.94,15.157]
[1730496151111,70.0,165.0,164.91,0.6047773]
[1730496151308,20.0,164.99,164.91,0.6047773]
[1730496151528,21.2146,164.98,164.91,0.6047773]
[1730496151733,91.2146,164.98,164.91,0.6047773]
[1730496151930,76.0613,164.98,164.91,0.6047773]
[1730496153432,92.1618,164.98,164.91,0.6047773]
[1730496154420,70.0,164.96,164.91,0.6047773]
[1730496154825,43.776884,164.97,164.91,0.6047773]
[1730496155149,107.3151,164.98,164.91,0.6047773]
[1730496155349,20.0,164.97,164.91,0.6047773]
[1730496155636,6.062,164.96,164.91,0.6047773]
[1730496156428,70.0,164.94,164.91,0.6047773]
[1730496156624,82.5785,164.96,164.91,0.6047773]
[1730496158941,16.1005,164.98,164.91,0.6047773]
[1730496159147,26.0619,164.97,164.91,21.8280773]
[1730496159442,6.0619,164.97,164.91,21.8280773]
[1730496160126,16.1005,164.98,164.91,21.8280773]
[1730496160338,22.162,164.98,164.91,21.8280773]
[1730496161042,16.1005,164.98,164.92,0.12549]
[1730496161219,22.1618,164.98,164.91,21.8280773]
[1730496162752,16.1005,164.98,164.91,21.8280773]
[1730496163544,22.1619,164.98,164.91,21.8280773]
[1730496164635,26.0606,165.0,164.91,21.8280773]
[1730496168851,70.0,164.99,164.91,15.7644773]
[1730496169348,20.0,164.98,164.91,21.8283773]
[1730496169531,70.0,164.97,164.91,0.6047773]
[1730496169947,20.0,164.98,164.91,0.6047773]
[1730496170755,6.0617,164.97,164.91,21.8282773]
[1730496172148,6.0617,164.97,164.91,15.7644773]
[1730496174038,85.2892,164.96,164.91,0.6047773]
[1730496174345,131.66640689,164.92,164.91,0.6047773]
[1730496174747,131.76640689,164.92,164.91,0.6047773]
[1730496175051,131.66640689,164.92,164.91,0.6047773]
[1730496175432,131.76640689,164.92,164.91,0.6047773]
[1730496175845,153.26710689,164.92,164.91,0.6047773]
[1730496176027,153.26710689,164.92,164.8,21.2375]
[1730496176028,20.0,164.88,164.8,21.2375]
[1730496176230,70.0,164.86,164.79,6.29914395]
[1730496176448,70.0,164.84,164.76,27.8262]
[1730496176635,15.2892,164.83,164.76,21.2421]
[1730496176836,15.2892,164.83,164.76,15.173]
[1730496177242,15.2892,164.83,164.75,0.6047773]
[1730496177243,20.0,164.82,164.75,0.6047773]
[1730496177952,20.0,164.79,164.75,0.6047773]
[1730496178151,26.0684,164.79,164.75,0.6047773]
[1730496178332,20.0,164.79,164.75,0.6047773]
[1730496178529,20.0,164.8,164.75,6.6744773]
[1730496178747,70.0,164.82,164.75,21.8489773]
[1730496179150,76.0672,164.82,164.75,15.7792773]
[1730496180668,6.3115,164.86,164.76,21.36799]
[1730496180669,82.2775,164.86,164.76,21.36799]
[1730496181344,82.2775,164.86,164.76,21.2425]
[1730496181651,15.6968,164.87,164.77,0.12549]
[1730496181859,15.6968,164.87,164.77,23.902374]
[1730496182053,15.6968,164.87,164.79,0.12549]
[1730496182359,82.1809,164.9,164.79,23.902374]
[1730496182536,15.6968,164.91,164.8,0.12549]
[1730496182736,15.6968,164.91,164.79,0.25098]
[1730496182958,21.7609,164.91,164.79,0.12549]
[1730496183164,91.7609,164.91,164.79,0.12549]
[1730496183872,21.7609,164.91,164.81,0.12549]
[1730496184058,20.0,164.9,164.81,0.12549]
[1730496184858,20.0,164.9,164.82,15.168]
[1730496185246,23.776884,164.89,164.82,15.168]
[1730496185455,15.6968,164.91,164.82,15.168]
[1730496185763,23.95322289,164.92,164.82,15.168]
[1730496185764,17.88952289,164.92,164.83,0.12549]
[1730496186852,17.88952289,164.92,164.81,0.22549]
[1730496187055,17.88952289,164.92,164.84,15.1662]
[1730496187660,17.88952289,164.92,164.85,0.12549]
[1730496188759,17.88952289,164.92,164.87,0.12549]
[1730496190746,17.88952289,164.92,164.89,0.12549]
[1730496191161,17.88952289,164.92,164.88,21.2275]
[1730496192155,17.88952289,164.92,164.88,15.1625]
[1730496193164,17.88952289,164.92,164.82,30.3361]
[1730496193165,29.840784,164.91,164.82,51.5713]
[1730496193677,29.840784,164.91,164.83,0.12549]
[1730496193978,17.88952289,164.92,164.83,0.22549]
[1730496194484,17.88952289,164.92,164.83,0.12549]
[1730496194775,23.95312289,164.92,164.83,0.12549]
[1730496194948,23.776884,164.91,164.82,51.5713]
[1730496195150,6.0642,164.9,164.82,51.5713]
[1730496195458,6.0642,164.9,164.83,0.12549]
[1730496196256,6.0642,164.9,164.84,21.2326]
[1730496196951,29.840784,164.91,164.84,21.2326]
[1730496198574,29.840784,164.91,164.84,15.1662]
[1730496199481,29.840784,164.91,164.82,6.0672]
[1730496199665,15.807,164.89,164.81,15.1686]
[1730496199862,39.583884,164.89,164.81,21.2361]
[1730496200176,23.776884,164.85,164.77,21.241]
[1730496200687,6.0664,164.84,164.77,21.241]
[1730496202175,6.0664,164.84,164.77,15.172]
[1730496203483,6.0664,164.84,164.77,21.241]
[1730496205181,6.0664,164.84,164.77,15.172]
[1730496209368,6.0664,164.84,164.76,6.0694]
[1730496209965,23.776884,164.83,164.76,6.0694]
[1730496210161,23.776884,164.83,164.76,15.1735]
[1730496210683,23.776884,164.83,164.76,21.2429]
[1730496211274,6.0672,164.82,164.76,21.2429]
[1730496216477,22.1321,164.82,164.76,21.2429]
[1730496216709,23.776884,164.81,164.75,0.6047773]
[1730496217395,93.776884,164.81,164.75,0.6047773]
[1730496217589,23.776884,164.79,164.75,0.6047773]
[1730496218698,6.0686,164.78,164.75,0.6047773]
[1730496219277,23.776884,164.77,164.75,0.6047773]
[1730496220072,6.0686,164.78,164.75,0.6047773]
[1730496220278,23.776884,164.77,164.75,0.6047773]
[1730496220873,29.845484,164.78,164.75,0.6047773]
[1730496221288,23.776884,164.76,164.75,0.6047773]
[1730496222300,29.846284,164.76,164.75,0.6047773]
[1730496223373,99.846284,164.76,164.75,0.6047773]
[1730496227186,99.846284,164.76,164.7,5.9078937]
[1730496229289,99.846284,164.76,164.7,5.4078937]
[1730496229611,99.846284,164.76,164.7,4.4078937]
[1730496229991,99.846284,164.76,164.66,21.2559]
[1730496230804,23.776884,164.74,164.66,21.2559]
[1730496231011,23.776884,164.72,164.66,15.1828]
[1730496231213,23.776884,164.68,164.6,36.4801]
[1730496231416,23.776884,164.68,164.6,27.3671]
[1730496231891,15.1324,164.7,164.6,42.5554]
[1730496232098,23.776884,164.69,164.6,42.5554]
[1730496232287,23.776884,164.66,164.6,20.7635]
[1730496233491,23.776884,164.67,164.6,20.7635]
[1730496233882,15.1324,164.7,164.6,20.7635]
[1730496233883,20.0,164.68,164.6,20.7635]
[1730496234199,20.0,164.69,164.6,20.7635]
[1730496234401,43.776884,164.69,164.6,20.7635]
[1730496234600,23.776884,164.69,164.6,20.7635]
[1730496235492,29.848884,164.69,164.6,20.7635]
[1730496236385,6.072,164.69,164.6,20.7635]
[1730496236885,20.0,164.69,164.6,20.7635]
[1730496237104,21.2041,164.7,164.6,51.2401]
[1730496237105,15.1324,164.7,164.6,51.2401]
[1730496237305,21.204,164.7,164.6,51.1401]
[1730496237482,21.204,164.7,164.6,20.7635]
[1730496237483,91.204,164.7,164.6,20.7635]
[1730496237896,41.6865181,164.69,164.6,20.7635]
[1730496238813,47.7585181,164.69,164.6,20.7635]
[1730496240834,117.7585181,164.69,164.6,20.7635]
[1730496242709,117.7585181,164.69,164.6,15.1883]
[1730496243008,23.776884,164.67,164.6,15.1883]
[1730496243912,23.776884,164.67,164.6,21.2636]
[1730496244290,17.9096341,164.69,164.6,21.2636]
[1730496244902,17.9096341,164.69,164.63,0.12549]
[1730496245991,17.9096341,164.69,164.64,21.2584]
[1730496246188,17.9096341,164.69,164.64,51.6276]
[1730496246393,17.9096341,164.69,164.65,0.12549]
[1730496247416,17.9096341,164.69,164.66,21.2559]
[1730496248701,17.9096341,164.69,164.67,0.12549]
[1730496248914,17.9096341,164.69,164.67,0.22549]
[1730496249708,17.9096341,164.69,164.68,6.0723]
[1730496251501,17.9096341,164.69,164.66,15.1828]
[1730496256598,23.776884,164.75,164.66,15.1828]
[1730496257397,29.846684,164.75,164.66,15.1828]
[1730496259504,20.0,164.74,164.66,15.1828]
[1730496259706,47.75044405,164.75,164.66,15.1828]
[1730496260221,29.846684,164.75,164.66,15.1828]
[1730496262724,99.846684,164.75,164.66,15.1828]
[1730496262902,23.776884,164.73,164.66,15.1828]
[1730496263103,41.68119012,164.73,164.66,15.1828]
[1730496263597,41.68119012,164.73,164.63,21.2596]
[1730496264422,6.0709,164.72,164.63,21.2596]
[1730496271405,41.68119012,164.73,164.63,21.2596]
[1730496272525,6.0709,164.72,164.63,21.2596]
[1730496276010,23.776884,164.71,164.63,15.1855]
[1730496277227,29.848384,164.71,164.63,15.1855]
[1730496280013,23.97510612,164.73,164.64,0.12549]
[1730496280941,23.97510612,164.73,164.65,15.1837]
[1730496290516,17.90430612,164.73,164.66,0.12549]
[1730496291341,23.97490612,164.73,164.66,0.12549]
[1730496291544,17.90430612,164.73,164.66,0.12549]
[1730496292045,17.90430612,164.73,164.66,0.35098]
[1730496292426,17.90430612,164.73,164.66,0.45098]
[1730496292637,17.90430612,164.73,164.68,0.12549]
[1730496295525,17.90430612,164.73,164.69,21.252]
[1730496300151,17.90430612,164.73,164.7,0.12549]
[1730496302225,17.90430612,164.73,164.71,15.1781]
[1730496303528,17.90430612,164.73,164.68,21.2525]
[1730496303732,23.97480612,164.73,164.68,21.2525]
[1730496304125,23.97480612,164.73,164.68,15.1805]
[1730496304447,23.97480612,164.73,164.65,21.2571]
[1730496305534,23.97480612,164.73,164.61,6.1111]
[1730496305858,23.97480612,164.73,164.62,51.6338]
[1730496306443,23.97480612,164.73,164.63,0.12549]
[1730496306750,23.97480612,164.73,164.64,21.2584]
[1730496307145,15.2126,164.71,164.64,21.2584]
[1730496308348,6.0716,164.7,164.6,51.6386]
[1730496308734,23.776884,164.69,164.6,51.6386]
[1730496309649,23.776884,164.69,164.59,0.6047773]
[1730496309650,20.0,164.67,164.59,0.6047773]
[1730496309853,93.776884,164.66,164.59,0.6047773]
[1730496310234,15.2126,164.68,164.61,0.12549]
[1730496311565,15.2126,164.68,164.6,0.12549]
[1730496311729,15.2126,164.68,164.62,15.1864]
[1730496312360,21.2849,164.68,164.62,15.1864]
[1730496312939,21.2849,164.68,164.6,6.0753]
[1730496313139,23.776884,164.67,164.59,6.6803773]
[1730496313748,6.0731,164.66,164.59,6.6803773]
[1730496314675,23.776884,164.65,164.59,0.6047773]
[1730496315666,29.850684,164.65,164.59,0.6047773]
[1730496316965,23.776884,164.63,164.59,0.6047773]
[1730496317136,70.0,164.61,164.59,0.6047773]
[1730496317462,23.776884,164.61,164.59,0.6047773]
[1730496317861,93.776884,164.61,164.59,0.6047773]
[1730496319362,29.852184,164.6,164.59,0.6047773]
[1730496320146,38.797884,164.59,164.49,15.1983]
[1730496320369,108.797884,164.59,164.49,15.1983]
[1730496320673,20.0,164.55,164.45,12.7013]
[1730496321282,20.0,164.53,164.45,12.7013]
[1730496321564,20.0,164.55,164.45,12.7013]
[1730496323389,20.0,164.56,164.45,12.7013]
[1730496323555,26.0768,164.56,164.45,12.7013]
[1730496325668,96.0768,164.56,164.45,12.7013]
[1730496325858,23.776884,164.55,164.45,12.7013]
[1730496326048,20.0,164.54,164.45,12.7013]
[1730496326244,91.6073,164.53,164.42,0.6047773]
[1730496326467,15.021,164.48,164.42,0.6047773]
[1730496327354,6.0801,164.47,164.42,0.6047773]
[1730496329067,21.1007,164.48,164.42,21.8913773]
[1730496329268,15.021,164.52,164.42,21.8913773]
[1730496329473,21.0996,164.52,164.42,21.8913773]
[1730496330772,21.0996,164.52,164.44,21.2843]
[1730496331175,23.776884,164.54,164.44,21.2843]
[1730496331382,21.8946,164.55,164.45,0.12549]
[1730496331579,21.8946,164.55,164.44,21.2843]
[1730496332157,21.8946,164.55,164.45,0.12549]
[1730496332376,21.8946,164.55,164.46,21.2817]
[1730496332556,20.0,164.54,164.46,21.2817]
[1730496332752,21.8946,164.55,164.46,21.2817]
[1730496336766,21.8946,164.55,164.42,0.8047773]
[1730496336977,21.8946,164.55,164.43,21.2856]
[1730496337181,21.8946,164.55,164.44,0.12549]
[1730496337664,23.776884,164.52,164.43,21.2856]
[1730496338476,20.0,164.54,164.43,21.2856]
[1730496338660,137.4734,164.55,164.43,21.2856]
[1730496338661,20.0,164.52,164.43,21.2856]
[1730496342486,6.0786,164.51,164.43,21.2856]
[1730496345091,20.0,164.52,164.43,21.2856]
[1730496345092,6.0793,164.49,164.43,21.2856]
[1730496346081,6.0786,164.51,164.43,21.2856]
[1730496347176,23.776884,164.53,164.43,21.2856]
[1730496348693,6.0782,164.52,164.43,21.2856]
[1730496350972,20.0,164.51,164.43,21.2856]
[1730496352090,6.079,164.5,164.43,21.2856]
[1730496354088,6.079,164.5,164.43,15.204]
[1730496354574,6.079,164.5,164.42,6.6865773]
[1730496355187,21.2765,164.5,164.42,0.6047773]
[1730496358482,15.8175,164.49,164.42,0.6047773]
[1730496359485,6.0797,164.48,164.42,0.6047773]
[1730496360682,21.2791,164.48,164.42,0.6047773]
[1730496362689,20.0,164.47,164.42,0.6047773]
[1730496363586,6.0805,164.46,164.42,0.6047773]
[1730496364273,21.2817,164.46,164.42,0.6047773]
[1730496364707,15.8175,164.49,164.42,0.6047773]
[1730496365015,6.0782,164.52,164.43,0.12549]
[1730496365514,15.428,164.57,164.45,0.12549]
[1730496365678,21.5044,164.57,164.45,0.12549]
[1730496366385,21.5044,164.57,164.45,0.22549]
[1730496366702,21.5044,164.57,164.48,0.12549]
[1730496366910,17.92187448,164.6,164.5,0.22549]
[1730496368004,17.92187448,164.6,164.52,0.22549]
[1730496368192,17.92187448,164.6,164.57,0.1]
[1730496368420,6.0716,164.7,164.59,0.35098]